fUST/lending_fUST_20251113
["ID","MTS","AMOUNT","RATE_DAILY","PERIOD"]
[393864038,1763045544771,-436.67607061,0.00048493,120]
[393864039,1763045544782,-500.0,0.00048493,120]
[393864040,1763045544792,-500.0,0.00048493,120]
[393864041,1763045544803,-817.21,0.00048493,120]
[393864042,1763045544814,-500.0,0.00048493,120]
[393864043,1763045544824,-500.0,0.00048493,120]
[393864044,1763045544833,-699.0,0.00048493,120]
[393864045,1763045544843,-200.0,0.00048508,120]
[393864046,1763045544854,-157.283892,0.00048644,30]
[393864047,1763045544864,-11095.74981082,0.000487,120]
[393864048,1763045544880,-571.44,0.00048767,120]
[393864049,1763045544890,-544.73,0.00048767,120]
[393864050,1763045544899,-608.84,0.00048767,120]
[393864051,1763045544909,-518.75543039,0.00048767,120]
[393864052,1763045544919,-565.99,0.00048767,120]
[393864053,1763045544928,-500.0,0.00048767,120]
[393864054,1763045544937,-500.0,0.00048767,120]
[393864055,1763045544947,-200.0,0.00048767,120]
[393864056,1763045544957,-732.35,0.00048767,120]
[393864057,1763045544967,-500.0,0.00048767,120]
[393864058,1763045544976,-570.02,0.00048767,120]
[393864059,1763045544986,-502.75,0.00048767,120]
[393864060,1763045544996,-585.51,0.00048767,120]
[393864061,1763045545006,-500.0,0.00048767,120]
[393864062,1763045545016,-514.82,0.00048767,120]
[393864063,1763045545026,-500.0,0.00048767,120]
[393864064,1763045545035,-500.0,0.00048767,120]
[393864065,1763045545057,-577.09,0.00048767,120]
[393864066,1763045545068,-834.01,0.00048767,120]
[393864067,1763045545078,-969.65,0.00048767,120]
[393864068,1763045545089,-1066.87,0.00048767,7]
[393864069,1763045545100,-1264.73,0.00048767,30]
[393864070,1763045545110,-787.85,0.00048767,120]
[393864071,1763045545125,-552.73,0.00048767,120]
[393864072,1763045545135,-2599.22,0.00048767,2]
[393864073,1763045545146,-500.0,0.00048767,120]
[393864074,1763045545156,-736.82,0.00048767,120]
[393864075,1763045545167,-534.45,0.00048767,120]
[393864076,1763045545177,-500.0,0.00048767,120]
[393864077,1763045545187,-439.7392869,0.00048767,120]
[393864078,1763045545196,-539.92,0.00048767,120]
[393864079,1763045545207,-373.18572007,0.00048767,120]
[393864080,1763045545217,-558.63,0.00048767,120]
[393864081,1763045545227,-500.0,0.00048767,120]
[393864082,1763045545238,-633.9,0.00048767,120]
[393864083,1763045545249,-227.45784343,0.00048767,120]
[393864084,1763045545264,-500.0,0.00048767,120]
[393864085,1763045545275,-500.0,0.00048767,120]
[393864086,1763045545286,-500.0,0.00048767,120]
[393864087,1763045545296,-500.0,0.00048767,120]
[393864088,1763045545307,-500.0,0.00048767,120]
[393864089,1763045545318,-500.0,0.00048767,120]
[393864090,1763045545329,-500.0,0.00048767,120]
[393864091,1763045545339,-500.0,0.00048767,120]
[393864092,1763045545350,-500.0,0.00048767,120]
[393864093,1763045545361,-500.0,0.00048767,120]
[393864094,1763045545377,-500.0,0.00048767,120]
[393864095,1763045545389,-500.0,0.00048767,120]
[393864096,1763045545400,-500.0,0.00048767,120]
[393864097,1763045545411,-500.0,0.00048767,120]
[393864098,1763045545423,-500.0,0.00048767,120]
[393864099,1763045545433,-519.29,0.00048767,2]
[393864100,1763045545443,-500.0,0.00048767,120]
[393864101,1763045545453,-270.60654229,0.00048767,120]
[393864102,1763045545463,-500.0,0.00048767,120]
[393864103,1763045545473,-500.0,0.00048767,120]
[393864104,1763045545484,-780.21,0.00048767,120]
[393864105,1763045545494,-11245.95,0.00048767,3]
[393864106,1763045545503,-640.4,0.00048767,120]
[393864107,1763045545514,-500.0,0.00048767,120]
[393864108,1763045545524,-685.45,0.00048767,120]
[393864109,1763045545534,-500.0,0.00048767,120]
[393864110,1763045545544,-276.74896002,0.00048767,30]
[393864111,1763045545555,-598.06,0.00048767,120]
[393864112,1763045545566,-567.12,0.00048767,120]
[393864113,1763045545576,-779.28,0.00048767,120]
[393864114,1763045545586,-850.14,0.00048767,120]
[393864115,1763045545596,-793.5,0.00048767,120]
[393864116,1763045545606,-566.87,0.00048767,120]
[393864117,1763045545622,-631.85,0.00048767,120]
[393864118,1763045545633,-782.59,0.00048767,120]
[393864119,1763045545643,-555.43,0.00048767,120]
[393864120,1763045545653,-826.01,0.00048767,120]
[393864121,1763045545664,-500.0,0.00048767,120]
[393864122,1763045545675,-721.96,0.00048767,120]
[393864123,1763045545685,-913.41,0.00048767,120]
[393864124,1763045545695,-579.47,0.00048767,120]
[393864125,1763045545706,-684.28,0.00048767,120]
[393864126,1763045545717,-624.24,0.00048767,2]
[393864127,1763045545727,-770.91,0.00048767,120]
[393864128,1763045545737,-3457.67,0.00048767,120]
[393864129,1763045545747,-500.0,0.00048767,120]
[393864130,1763045545757,-1457.38,0.00048767,120]
[393864131,1763045545768,-797.92,0.00048767,120]
[393864132,1763045545778,-630.0,0.00048767,120]
[393864133,1763045545788,-261.20139672,0.00048767,120]
[393864134,1763045545798,-500.0,0.00048767,120]
[393864135,1763045545807,-500.0,0.00048767,120]
[393864136,1763045545818,-1748.23,0.00048767,120]
[393864137,1763045545828,-871.35,0.00048767,120]
[393864138,1763045545838,-854.46,0.00048767,120]
[393864139,1763045545847,-614.87,0.00048767,120]
[393864140,1763045545857,-591.42,0.00048767,120]
[393864141,1763045545871,-500.0,0.00048767,120]
[393864142,1763045545882,-500.0,0.00048767,120]
[393864143,1763045545892,-817.21,0.00048767,120]
[393864144,1763045545902,-500.0,0.00048767,120]
[393864145,1763045545913,-500.0,0.00048767,120]
[393864146,1763045545922,-699.0,0.00048767,120]
[393864147,1763045545932,-1616.53,0.000488,14]
[393864148,1763045545942,-156.0,0.00049,120]
[393864149,1763045545951,-3000.0,0.00049,120]
[393864150,1763045545961,-571.44,0.00049041,120]
[393864151,1763045545971,-544.73,0.00049041,120]
[393864152,1763045545980,-608.84,0.00049041,120]
[393864153,1763045545990,-565.99,0.00049041,120]
[393864154,1763045546000,-500.0,0.00049041,120]
[393864155,1763045546009,-500.0,0.00049041,120]
[393864156,1763045546018,-200.0,0.00049041,120]
[393864157,1763045546028,-732.35,0.00049041,120]
[393864158,1763045546037,-346.48237819,0.00049041,120]
[393864159,1763045546046,-570.02,0.00049041,120]
[393864160,1763045546056,-502.75,0.00049041,120]
[393864161,1763045546066,-585.51,0.00049041,120]
[393864162,1763045546076,-500.0,0.00049041,120]
[393864163,1763045546085,-514.82,0.00049041,120]
[393864164,1763045546095,-500.0,0.00049041,120]
[393864165,1763045546105,-223.61070958,0.00049041,120]
[393864166,1763045546114,-577.09,0.00049041,120]
[393864167,1763045546129,-834.01,0.00049041,120]
[393864168,1763045546139,-969.65,0.00049041,120]
[393864169,1763045546149,-1066.87,0.00049041,7]
[393864170,1763045546158,-1264.73,0.00049041,30]
[393864171,1763045546169,-787.85,0.00049041,120]
[393864172,1763045546179,-552.73,0.00049041,120]
[393864173,1763045546188,-2599.22,0.00049041,2]
[393864174,1763045546199,-500.0,0.00049041,120]
[393864175,1763045546208,-736.82,0.00049041,120]
[393864176,1763045546218,-534.45,0.00049041,120]
[393864177,1763045546229,-500.0,0.00049041,120]
[393864178,1763045546239,-539.92,0.00049041,120]
[393864179,1763045546248,-558.63,0.00049041,120]
[393864180,1763045546262,-500.0,0.00049041,120]
[393864181,1763045546272,-633.9,0.00049041,120]
[393864182,1763045546281,-519.29,0.00049041,2]
[393864183,1763045546291,-500.0,0.00049041,120]
[393864184,1763045546301,-500.0,0.00049041,120]
[393864185,1763045546311,-780.21,0.00049041,120]
[393864186,1763045546322,-11245.95,0.00049041,3]
[393864187,1763045546330,-640.4,0.00049041,120]
[393864188,1763045546341,-625.07565265,0.00049041,120]
[393864189,1763045546351,-685.45,0.00049041,120]
[393864190,1763045546361,-500.0,0.00049041,120]
[393864191,1763045546374,-598.06,0.00049041,120]
[393864192,1763045546387,-567.12,0.00049041,120]
[393864193,1763045546397,-779.28,0.00049041,120]
[393864194,1763045546407,-850.14,0.00049041,120]
[393864195,1763045546416,-793.5,0.00049041,120]
[393864196,1763045546426,-566.87,0.00049041,120]
[393864197,1763045546438,-631.85,0.00049041,120]
[393864198,1763045546454,-782.59,0.00049041,120]
[393864199,1763045546464,-555.43,0.00049041,120]
[393864200,1763045546474,-826.01,0.00049041,120]
[393864201,1763045546484,-636.43480043,0.00049041,120]
[393864202,1763045546494,-721.96,0.00049041,120]
[393864203,1763045546504,-913.41,0.00049041,120]
[393864204,1763045546514,-579.47,0.00049041,120]
[393864205,1763045546523,-684.28,0.00049041,120]
[393864206,1763045546533,-624.24,0.00049041,2]
[393864207,1763045546543,-770.91,0.00049041,120]
[393864208,1763045546554,-3457.67,0.00049041,120]
[393864209,1763045546564,-570.08998122,0.00049041,120]
[393864210,1763045546574,-1457.38,0.00049041,120]
[393864211,1763045546583,-797.92,0.00049041,120]
[393864212,1763045546593,-630.0,0.00049041,120]
[393864213,1763045546603,-500.0,0.00049041,120]
[393864214,1763045546613,-263.42014983,0.00049041,120]
[393864215,1763045546627,-1748.23,0.00049041,120]
[393864216,1763045546637,-871.35,0.00049041,120]
[393864217,1763045546648,-854.46,0.00049041,120]
[393864218,1763045546658,-614.87,0.00049041,120]
[393864219,1763045546667,-591.42,0.00049041,120]
[393864220,1763045546678,-500.0,0.00049041,120]
[393864221,1763045546688,-500.0,0.00049041,120]
[393864222,1763045546698,-817.21,0.00049041,120]
[393864223,1763045546709,-313.96039456,0.00049041,120]
[393864224,1763045546719,-500.0,0.00049041,120]
[393864225,1763045546730,-699.0,0.00049041,120]
[393864226,1763045546740,-160.0,0.0004906,3]
[393864227,1763045546750,-161.59726367,0.0004906,5]
[393864228,1763045546759,-200.0,0.00049082,120]
[393864229,1763045546769,-271.05,0.000491,30]
[393864230,1763045546778,-500.0,0.00049192,60]
[393864231,1763045546787,-4000.0,0.000492,120]
[393864232,1763045546796,-585.43,0.000492,14]
[393864233,1763045546806,-6720.6523908,0.0004928,2]
[393864234,1763045546816,-571.44,0.00049315,120]
[393864235,1763045546825,-544.73,0.00049315,120]
[393864236,1763045546835,-608.84,0.00049315,120]
[393864237,1763045546844,-565.99,0.00049315,120]
[393864238,1763045546854,-500.24830361,0.00049315,120]
[393864239,1763045546863,-380.24210283,0.00049315,120]
[393864240,1763045547004,-200.0,0.00049315,120]
[393864241,1763045547014,-732.35,0.00049315,120]
[393864242,1763045547024,-570.02,0.00049315,120]
[393864243,1763045547034,-502.75,0.00049315,120]
[393864244,1763045547045,-585.51,0.00049315,120]
[393864245,1763045547055,-595.4611188,0.00049315,120]
[393864246,1763045547065,-514.82,0.00049315,120]
[393864247,1763045547075,-500.0,0.00049315,120]
[393864248,1763045547084,-577.09,0.00049315,120]
[393864249,1763045547094,-834.01,0.00049315,120]
[393864250,1763045547103,-969.65,0.00049315,120]
[393864251,1763045547113,-1066.87,0.00049315,7]
[393864252,1763045547130,-1264.73,0.00049315,30]
[393864253,1763045547139,-787.85,0.00049315,120]
[393864254,1763045547148,-552.73,0.00049315,120]
[393864255,1763045547158,-2599.22,0.00049315,2]
[393864256,1763045547167,-283.47486886,0.00049315,120]
[393864257,1763045547176,-736.82,0.00049315,120]
[393864258,1763045547185,-534.45,0.00049315,120]
[393864259,1763045547195,-500.0,0.00049315,120]
[393864260,1763045547204,-539.92,0.00049315,120]
[393864261,1763045547214,-558.63,0.00049315,120]
[393864262,1763045547224,-186.96446916,0.00049315,120]
[393864263,1763045547234,-633.9,0.00049315,120]
[393864264,1763045547243,-519.29,0.00049315,2]
[393864265,1763045547253,-500.0,0.00049315,120]
[393864266,1763045547263,-500.0,0.00049315,120]
[393864267,1763045547273,-780.21,0.00049315,120]
[393864268,1763045547285,-11245.95,0.00049315,3]
[393864269,1763045547294,-640.4,0.00049315,120]
[393864270,1763045547304,-685.45,0.00049315,120]
[393864271,1763045547315,-500.0,0.00049315,120]
[393864272,1763045547324,-598.06,0.00049315,120]
[393864273,1763045547334,-567.12,0.00049315,120]
[393864274,1763045547343,-779.28,0.00049315,120]
[393864275,1763045547354,-850.14,0.00049315,120]
[393864276,1763045547364,-566.87,0.00049315,120]
[393864277,1763045547378,-793.5,0.00049315,120]
[393864278,1763045547388,-631.85,0.00049315,120]
[393864279,1763045547397,-782.59,0.00049315,120]
[393864280,1763045547406,-555.43,0.00049315,120]
[393864281,1763045547416,-826.01,0.00049315,120]
[393864282,1763045547426,-721.96,0.00049315,120]
[393864283,1763045547436,-913.41,0.00049315,120]
[393864284,1763045547445,-579.47,0.00049315,120]
[393864285,1763045547455,-684.28,0.00049315,120]
[393864286,1763045547465,-624.24,0.00049315,2]
[393864287,1763045547474,-770.91,0.00049315,120]
[393864288,1763045547484,-3457.67,0.00049315,120]
[393864289,1763045547494,-1457.38,0.00049315,120]
[393864290,1763045547504,-797.92,0.00049315,120]
[393864291,1763045547514,-630.0,0.00049315,120]
[393864292,1763045547523,-300.86721482,0.00049315,120]
[393864293,1763045547534,-1748.23,0.00049315,120]
[393864294,1763045547544,-871.35,0.00049315,120]
[393864295,1763045547554,-854.46,0.00049315,120]
[393864296,1763045547563,-614.87,0.00049315,120]
[393864297,1763045547573,-591.42,0.00049315,120]
[393864298,1763045547583,-500.0,0.00049315,120]
[393864299,1763045547594,-500.0,0.00049315,120]
[393864300,1763045547604,-817.21,0.00049315,120]
[393864301,1763045547614,-262.19457431,0.00049315,120]
[393864302,1763045547627,-699.0,0.00049315,120]
[393864303,1763045547637,-500.0,0.0004935,30]
[393864304,1763045547646,-1000.0,0.000495,120]
[393864305,1763045547655,-571.44,0.00049589,120]
[393864306,1763045547665,-544.73,0.00049589,120]
[393864307,1763045547675,-608.84,0.00049589,120]
[393864308,1763045547684,-565.99,0.00049589,120]
[393864309,1763045547694,-200.0,0.00049589,120]
[393864310,1763045547703,-732.35,0.00049589,120]
[393864311,1763045547713,-570.02,0.00049589,120]
[393864312,1763045547723,-502.75,0.00049589,120]
[393864313,1763045547733,-585.51,0.00049589,120]
[393864314,1763045547744,-514.82,0.00049589,120]
[393864315,1763045547754,-500.0,0.00049589,120]
[393864316,1763045547763,-577.09,0.00049589,120]
[393864317,1763045547773,-834.01,0.00049589,120]
[393864318,1763045547783,-969.65,0.00049589,120]
[393864319,1763045547792,-1066.87,0.00049589,7]
[393864320,1763045547803,-1264.73,0.00049589,30]
[393864321,1763045547813,-787.85,0.00049589,120]
[393864322,1763045547823,-552.73,0.00049589,120]
[393864323,1763045547834,-2599.22,0.00049589,2]
[393864324,1763045547844,-736.82,0.00049589,120]
[393864325,1763045547854,-534.45,0.00049589,120]
[393864326,1763045547865,-500.0,0.00049589,120]
[393864327,1763045547882,-539.92,0.00049589,120]
[393864328,1763045547892,-558.63,0.00049589,120]
[393864329,1763045547903,-633.9,0.00049589,120]
[393864330,1763045547913,-519.29,0.00049589,2]
[393864331,1763045547923,-554.13037229,0.00049589,120]
[393864332,1763045547933,-500.0,0.00049589,120]
[393864333,1763045547943,-780.21,0.00049589,120]
[393864334,1763045547954,-11245.95,0.00049589,3]
[393864335,1763045547964,-640.4,0.00049589,120]
[393864336,1763045547974,-685.45,0.00049589,120]
[393864337,1763045547985,-500.0,0.00049589,120]
[393864338,1763045547995,-598.06,0.00049589,120]
[393864339,1763045548005,-567.12,0.00049589,120]
[393864340,1763045548015,-779.28,0.00049589,120]
[393864341,1763045548026,-850.14,0.00049589,120]
[393864342,1763045548037,-566.87,0.00049589,120]
[393864343,1763045548048,-793.5,0.00049589,120]
[393864344,1763045548058,-631.85,0.00049589,120]
[393864345,1763045548069,-782.59,0.00049589,120]
[393864346,1763045548079,-555.43,0.00049589,120]
[393864347,1763045548088,-826.01,0.00049589,120]
[393864348,1763045548098,-721.96,0.00049589,120]
[393864349,1763045548108,-913.41,0.00049589,120]
[393864350,1763045548119,-579.47,0.00049589,120]
[393864351,1763045548131,-684.28,0.00049589,120]
[393864352,1763045548142,-624.24,0.00049589,2]
[393864353,1763045548152,-770.91,0.00049589,120]
[393864354,1763045548163,-3457.67,0.00049589,120]
[393864355,1763045548173,-1457.38,0.00049589,120]
[393864356,1763045548183,-797.92,0.00049589,120]
[393864357,1763045548193,-630.0,0.00049589,120]
[393864358,1763045548203,-1748.23,0.00049589,120]
[393864359,1763045548213,-871.35,0.00049589,120]
[393864360,1763045548223,-854.46,0.00049589,120]
[393864361,1763045548233,-614.87,0.00049589,120]
[393864362,1763045548243,-591.42,0.00049589,120]
[393864363,1763045548258,-500.0,0.00049589,120]
[393864364,1763045548269,-500.0,0.00049589,120]
[393864365,1763045548279,-817.21,0.00049589,120]
[393864366,1763045548290,-699.0,0.00049589,120]
[393864367,1763045548302,-2000.0,0.00049803,21]
[393864368,1763045548312,-571.44,0.00049863,120]
[393864369,1763045548321,-544.73,0.00049863,120]
[393864370,1763045548331,-608.84,0.00049863,120]
[393864371,1763045548342,-565.99,0.00049863,120]
[393864372,1763045548351,-277.4395773,0.00049863,120]
[393864373,1763045548361,-732.35,0.00049863,120]
[393864374,1763045548375,-570.02,0.00049863,120]
[393864375,1763045548385,-502.75,0.00049863,120]
[393864376,1763045548396,-585.51,0.00049863,120]
[393864377,1763045548406,-514.82,0.00049863,120]
[393864378,1763045548416,-500.0,0.00049863,120]
[393864379,1763045548426,-577.09,0.00049863,120]
[393864380,1763045548437,-834.01,0.00049863,120]
[393864381,1763045548448,-969.65,0.00049863,120]
[393864382,1763045548459,-1066.87,0.00049863,7]
[393864383,1763045548470,-1264.73,0.00049863,30]
[393864384,1763045548481,-787.85,0.00049863,120]
[393864385,1763045548492,-552.73,0.00049863,120]
[393864386,1763045548503,-2599.22,0.00049863,2]
[393864387,1763045548514,-736.82,0.00049863,120]
[393864388,1763045548525,-534.45,0.00049863,120]
[393864389,1763045548535,-500.0,0.00049863,120]
[393864390,1763045548546,-539.92,0.00049863,120]
[393864391,1763045548556,-558.63,0.00049863,120]
[393864392,1763045548567,-633.9,0.00049863,120]
[393864393,1763045548577,-519.29,0.00049863,2]
[393864394,1763045548588,-448.74889116,0.00049863,120]
[393864395,1763045548600,-780.21,0.00049863,120]
[393864396,1763045548610,-11245.95,0.00049863,3]
[393864397,1763045548624,-640.4,0.00049863,120]
[393864398,1763045548635,-685.45,0.00049863,120]
[393864399,1763045548646,-500.0,0.00049863,120]
[393864400,1763045548657,-598.06,0.00049863,120]
[393864401,1763045548668,-567.12,0.00049863,120]
[393864402,1763045548678,-779.28,0.00049863,120]
[393864403,1763045548689,-850.14,0.00049863,120]
[393864404,1763045548700,-566.87,0.00049863,120]
[393864405,1763045548710,-793.5,0.00049863,120]
[393864406,1763045548721,-631.85,0.00049863,120]
[393864407,1763045548733,-782.59,0.00049863,120]
[393864408,1763045548745,-826.01,0.00049863,120]
[393864409,1763045548756,-555.43,0.00049863,120]
[393864410,1763045548768,-721.96,0.00049863,120]
[393864411,1763045548778,-913.41,0.00049863,120]
[393864412,1763045548789,-579.47,0.00049863,120]
[393864413,1763045548800,-684.28,0.00049863,120]
[393864414,1763045548813,-624.24,0.00049863,2]
[393864415,1763045548825,-770.91,0.00049863,120]
[393864416,1763045548837,-3457.67,0.00049863,120]
[393864417,1763045548850,-1457.38,0.00049863,120]
[393864418,1763045548863,-797.92,0.00049863,120]
[393864419,1763045548880,-630.0,0.00049863,120]
[393864420,1763045548893,-1748.23,0.00049863,120]
[393864421,1763045548906,-871.35,0.00049863,120]
[393864422,1763045548918,-854.46,0.00049863,120]
[393864423,1763045548931,-614.87,0.00049863,120]
[393864424,1763045548944,-591.42,0.00049863,120]
[393864425,1763045548957,-231.47779029,0.00049863,120]
[393864426,1763045548970,-636.73539423,0.00049863,120]
[393864427,1763045548983,-817.21,0.00049863,120]
[393864428,1763045548995,-699.0,0.00049863,120]
[393864429,1763045549015,-171.44661612,0.00049999,120]
[393864430,1763045549037,-386.77138162,0.00049999,120]
[393864431,1763045549060,-493.44123336,0.00049999,7]
[393864432,1763045549076,-582.70741972,0.00049999,120]
[393864433,1763045549093,-500.0,0.00049999,7]
[393864434,1763045549112,-500.0,0.00049999,7]
[393864435,1763045549138,-500.0,0.00049999,7]
[393864436,1763045549156,-500.0,0.00049999,7]
[393864437,1763045549173,-500.0,0.00049999,7]
[393864438,1763045549190,-530.21768503,0.00049999,7]
[393864439,1763045549208,-500.0,0.00049999,7]
[393864440,1763045549221,-500.0,0.00049999,7]
[393864441,1763045549235,-371.95916527,0.00049999,7]
[393864442,1763045549252,-1998.82999352,0.0005,120]
[393864443,1763045549270,-1000.0,0.0005,120]
[393864444,1763045549291,-1000.0,0.0005,120]
[393864445,1763045549308,-286.0,0.0005,120]
[393864446,1763045549320,-534.11689277,0.0005,10]
[393864447,1763045549337,-552.04503473,0.0005,120]
[393864448,1763045549353,-551.85,0.0005,120]
[393864449,1763045549365,-1000.0,0.0005,120]
[393864450,1763045549389,-1000.0,0.0005,30]
[393864451,1763045549403,-300.0,0.0005,120]
[393864452,1763045549417,-8604.01877987,0.0005,120]
[393864453,1763045549432,-89175.11102841,0.0005,30]
[393864454,1763045549447,-3000.0,0.0005,120]
[393864455,1763045549463,-5472.31424617,0.0005,2]
[393864456,1763045549478,-10000.0,0.0005,30]
[393864457,1763045549492,-571.51566486,0.00050136,120]
[393864458,1763045549506,-544.7419726,0.00050136,120]
[393864459,1763045549521,-608.93596567,0.00050136,120]
[393864460,1763045549535,-566.02510226,0.00050136,120]
[393864461,1763045549549,-732.37759976,0.00050136,120]
[393864462,1763045549564,-570.13182387,0.00050136,120]
[393864463,1763045549578,-502.81800476,0.00050136,120]
[393864464,1763045549591,-585.65102205,0.00050136,120]
[393864465,1763045549605,-514.95397937,0.00050136,120]
[393864466,1763045549618,-224.54644392,0.00050136,120]
[393864467,1763045549638,-577.12817712,0.00050136,120]
[393864468,1763045549652,-834.16787065,0.00050136,120]
[393864469,1763045549665,-969.66912041,0.00050136,120]
[393864470,1763045549680,-1066.98108997,0.00050136,7]
[393864471,1763045549695,-1264.84419723,0.00050136,30]
[393864472,1763045549711,-788.04175521,0.00050136,120]
[393864473,1763045549726,-552.83919336,0.00050136,120]
[393864474,1763045549740,-2599.42703805,0.00050136,2]
[393864475,1763045549755,-736.95930315,0.00050136,120]
[393864476,1763045549769,-534.68,0.00050136,120]
[393864477,1763045549783,-417.56751915,0.00050136,120]
[393864478,1763045549797,-540.00005044,0.00050136,120]
[393864479,1763045549810,-558.85099788,0.00050136,120]
[393864480,1763045549825,-633.91309435,0.00050136,120]
[393864481,1763045549840,-519.3425793,0.00050136,2]
[393864482,1763045549854,-780.27862707,0.00050136,120]
[393864483,1763045549870,-11246.08701535,0.00050136,3]
[393864484,1763045549890,-640.47226357,0.00050136,120]
[393864485,1763045549904,-685.5926452,0.00050136,120]
[393864486,1763045549916,-234.50779558,0.00050136,120]
[393864487,1763045549930,-598.19349316,0.00050136,120]
[393864488,1763045549943,-567.24465157,0.00050136,120]
[393864489,1763045549956,-779.47683933,0.00050136,120]
[393864490,1763045549969,-850.16657241,0.00050136,120]
[393864491,1763045549983,-567.08093069,0.00050136,120]
[393864492,1763045549996,-793.71011009,0.00050136,120]
[393864493,1763045550010,-632.07277864,0.00050136,120]
[393864494,1763045550023,-782.66346739,0.00050136,120]
[393864495,1763045550036,-555.51619333,0.00050136,120]
[393864496,1763045550050,-826.22532093,0.00050136,120]
[393864497,1763045550064,-722.00242578,0.00050136,120]
[393864498,1763045550082,-913.42425038,0.00050136,120]
[393864499,1763045550095,-579.58604376,0.00050136,120]
[393864500,1763045550108,-684.37436723,0.00050136,120]
[393864501,1763045550127,-624.30435558,0.00050136,2]
[393864502,1763045550140,-771.11670391,0.00050136,120]
[393864503,1763045550154,-3457.8696,0.00050136,120]
[393864504,1763045550167,-1457.51007152,0.00050136,120]
[393864505,1763045550180,-798.00125278,0.00050136,120]
[393864506,1763045550192,-630.20495868,0.00050136,120]
[393864507,1763045550205,-1748.42586088,0.00050136,120]
[393864508,1763045550219,-871.57506411,0.00050136,120]
[393864509,1763045550231,-854.59576354,0.00050136,120]
[393864510,1763045550245,-614.92477944,0.00050136,120]
[393864511,1763045550261,-591.57148043,0.00050136,120]
[393864512,1763045550276,-817.31932228,0.00050136,120]
[393864513,1763045550291,-699.22614269,0.00050136,120]
[393864514,1763045550305,-4000.0,0.000502,120]
[393864515,1763045550319,-9842.68319974,0.00050215,120]
[393864516,1763045550334,-500.0,0.00050288,60]
[393864517,1763045550347,-1000.0,0.000505,120]
[393864518,1763045550362,-1499.5802442,0.00050516,2]
[393864519,1763045550384,-5000.0,0.00050761,30]
[393864520,1763045550398,-1000.0,0.00051,120]
[393864521,1763045550412,-3000.0,0.00051,120]
[393864522,1763045550427,-22418.67055065,0.000511,120]
[393864523,1763045550440,-209.0,0.0005119,30]
[393864524,1763045550453,-4000.0,0.000512,120]
[393864525,1763045550466,-1616.53,0.000512,14]
[393864526,1763045550479,-500.0,0.00051384,60]
[393864527,1763045550492,-1000.0,0.000515,120]
[393864528,1763045550505,-200.0,0.000517,120]
[393864529,1763045550518,-202.19934,0.000517,120]
[393864530,1763045550530,-156.0,0.000518,120]
[393864531,1763045550542,-1000.0,0.00052,120]
[393864532,1763045550555,-200.0,0.00052,120]
[393864533,1763045550567,-3000.0,0.00052,120]
[393864534,1763045550580,-56966.27241127,0.00052,120]
[393864535,1763045550592,-271.05,0.00052,30]
[393864536,1763045550605,-4000.0,0.000522,120]
[393864537,1763045550617,-585.43,0.000522,14]